bitfinex/quotes_BTCUSD_20250917
["timestamp","ask_amount","ask_price","bid_price","bid_amount"]
[1758083695795,1.42851299,116420.0,116410.0,0.0013138]
[1758083696233,1.42851386,116420.0,116410.0,0.0013138]
[1758083696759,1.40647019,116420.0,116410.0,0.0013138]
[1758083697125,1.42851386,116420.0,116410.0,0.0013138]
[1758083698151,1.42250195,116420.0,116410.0,0.0013138]
[1758083698986,1.15302195,116420.0,116410.0,0.0013138]
[1758083699355,1.42234195,116420.0,116410.0,0.0013138]
[1758083700189,1.15302195,116420.0,116410.0,0.0013138]
[1758083700577,1.42234195,116420.0,116410.0,0.0013138]
[1758083700778,1.15302195,116420.0,116410.0,0.0013138]
[1758083701039,1.42234195,116420.0,116410.0,0.0013138]
[1758083704107,1.42835379,116420.0,116410.0,0.0013138]
[1758083704598,1.15903379,116420.0,116410.0,0.0013138]
[1758083704771,1.42835379,116420.0,116410.0,0.0013138]
[1758083705014,1.42835402,116420.0,116410.0,0.0013138]
[1758083705656,1.15903402,116420.0,116410.0,0.0013138]
[1758083705914,1.42835402,116420.0,116410.0,0.0013138]
[1758083707175,1.15903402,116420.0,116410.0,0.0013138]
[1758083707558,1.42835402,116420.0,116410.0,0.0013138]
[1758083709836,1.46714847,116420.0,116410.0,0.0013138]
[1758083710708,1.45111671,116420.0,116410.0,0.0013138]
[1758083710926,1.4671619,116420.0,116410.0,0.0013138]
[1758083712669,1.11901892,116420.0,116410.0,0.0013138]
[1758083712943,1.4671619,116420.0,116410.0,0.0013138]
[1758083713895,1.46717584,116420.0,116410.0,0.0013138]
[1758083715695,1.46713584,116420.0,116410.0,0.0013138]
[1758083718520,1.19785584,116420.0,116410.0,0.0013138]
[1758083718717,1.46713584,116420.0,116410.0,0.0013138]
[1758083720901,1.41713584,116420.0,116410.0,0.0013138]
[1758083722442,1.14785584,116420.0,116410.0,0.0013138]
[1758083722655,1.41725584,116420.0,116410.0,0.0013138]
[1758083724017,1.06911286,116420.0,116410.0,0.0013138]
[1758083724218,1.41725584,116420.0,116410.0,0.0013138]
[1758083724942,1.14801584,116420.0,116410.0,0.0013138]
[1758083725200,1.41725584,116420.0,116410.0,0.0013138]
[1758083725744,1.30305439,116420.0,116410.0,0.0034638]
[1758083725948,1.30305439,116420.0,116410.0,0.0272038]
[1758083726157,1.30097439,116420.0,116410.0,0.0272038]
[1758083727042,0.96097439,116420.0,116410.0,0.0272038]
[1758083727615,0.61283141,116420.0,116410.0,0.0272038]
[1758083727817,0.96097439,116420.0,116410.0,0.0272038]
[1758083728230,0.95494838,116420.0,116410.0,0.0272038]
[1758083728410,0.68570838,116420.0,116410.0,0.0272038]
[1758083728612,0.96097594,116420.0,116410.0,0.0272038]
[1758083729188,0.95490838,116420.0,116410.0,0.0272038]
[1758083731747,0.68570838,116420.0,116410.0,0.0034638]
[1758083731953,0.95490838,116420.0,116410.0,0.0267738]
[1758083733244,0.6067654,116420.0,116410.0,0.0267738]
[1758083733464,0.95490838,116420.0,116410.0,0.0267738]
[1758083733973,0.3375654,116420.0,116410.0,0.0034638]
[1758083734194,0.95696838,116420.0,116410.0,0.0034638]
[1758083734487,0.68570838,116420.0,116410.0,0.0034638]
[1758083734704,0.95490838,116420.0,116410.0,0.20014034]
[1758083735005,0.95696838,116420.0,116410.0,0.0034638]
[1758083735334,0.95900486,116420.0,116410.0,0.0013138]
[1758083735514,1.04550631,116420.0,116410.0,0.0013138]
[1758083736530,0.93115486,116420.0,116410.0,0.0033238]
[1758083736681,0.93115486,116420.0,116410.0,0.0266338]
[1758083737321,0.93113696,116420.0,116410.0,0.0266338]
[1758083740801,0.91506967,116420.0,116410.0,0.0266338]
[1758083741008,0.93113473,116420.0,116410.0,0.0266338]
[1758083741561,0.95597473,116420.0,116410.0,0.0033238]
[1758083741887,0.95898473,116420.0,116410.0,0.0033238]
[1758083742490,0.95898473,116420.0,116410.0,0.0013138]
[1758083742685,1.04548618,116420.0,116410.0,0.00096395]
[1758083744706,1.07129611,116420.0,116410.0,0.00096395]
[1758083748667,0.98479466,116420.0,116410.0,0.00096395]
[1758083749827,0.98479466,116420.0,116410.0,0.00297395]
[1758083751327,0.98479466,116420.0,116410.0,0.17478049]
[1758083751530,0.98479466,116420.0,116410.0,0.00297395]
[1758083754989,0.9687296,116420.0,116410.0,0.00297395]
[1758083755211,0.98480274,116420.0,116410.0,0.00297395]
[1758083755624,1.07130419,116420.0,116410.0,0.00297395]
[1758083756677,1.06829419,116420.0,116410.0,0.00297395]
[1758083757826,1.04345419,116420.0,116410.0,0.02732395]
[1758083758913,1.04345419,116420.0,116410.0,0.19913049]
[1758083759114,0.95695274,116420.0,116410.0,0.19913049]
[1758083759475,0.95695274,116420.0,116410.0,0.02732395]
[1758083761006,0.60674976,116420.0,116410.0,0.02732395]
[1758083761242,0.95489274,116420.0,116410.0,0.02732395]
[1758083764576,0.95490069,116420.0,116410.0,0.02732395]
[1758083764790,1.07155214,116420.0,116410.0,0.00096395]
[1758083770000,1.03280509,116420.0,116410.0,0.00096395]
[1758083772087,1.0328044,116420.0,116410.0,0.00096395]
[1758083773936,1.0326444,116420.0,116410.0,0.00096395]
[1758083774776,1.0077044,116420.0,116410.0,0.00096395]
[1758083774983,1.0326444,116420.0,116410.0,0.00096395]
[1758083776460,0.94614295,116420.0,116400.0,0.20619665]
[1758083776626,0.57839593,116410.0,116400.0,0.20619665]
[1758083776836,0.66489738,116410.0,116400.0,0.20619665]
[1758083777050,0.66489738,116410.0,116400.0,0.20834665]
[1758083777257,0.66499738,116410.0,116400.0,0.20834665]
[1758083778374,0.52740799,116410.0,116400.0,0.20834665]
[1758083778606,0.53340799,116410.0,116400.0,0.20834665]
[1758083778818,0.36160145,116410.0,116400.0,0.20834665]
[1758083780173,0.36160145,116410.0,116400.0,0.20934665]
[1758083781421,0.53340799,116410.0,116400.0,0.20934665]
[1758083781644,0.84491392,116410.0,116400.0,0.20934665]
[1758083782216,0.84280392,116410.0,116400.0,0.20934665]
[1758083787976,0.84491392,116410.0,116400.0,0.20934665]
[1758083788191,0.84280392,116410.0,116400.0,0.20934665]
[1758083789078,0.53340799,116410.0,116400.0,0.20934665]
[1758083789901,0.53340799,116410.0,116400.0,0.10934665]
[1758083790104,0.53340799,116410.0,116400.0,0.15106109]
[1758083790448,0.53340799,116410.0,116400.0,0.10934665]
[1758083790866,0.55624799,116410.0,116400.0,0.08532665]
[1758083791100,0.53544799,116410.0,116400.0,0.08532665]
[1758083791516,0.53340799,116410.0,116400.0,0.10950665]
[1758083793686,0.84280392,116410.0,116400.0,0.10950665]
[1758083796270,0.84484392,116410.0,116400.0,0.08532665]
[1758083796472,0.87088392,116410.0,116400.0,0.08532665]
[1758083797112,0.84484392,116410.0,116400.0,0.08532665]
[1758083797310,0.84280392,116410.0,116400.0,0.10950665]
[1758083798564,0.84484392,116410.0,116400.0,0.10950665]
[1758083798811,0.84484392,116410.0,116400.0,0.08532665]
[1758083799011,0.86768392,116410.0,116400.0,0.08532665]
[1758083799437,0.84484392,116410.0,116400.0,0.08532665]
[1758083801032,0.87088392,116410.0,116400.0,0.08317665]
[1758083802983,0.56148799,116410.0,116400.0,0.08317665]
[1758083803189,0.87088392,116410.0,116400.0,0.08317665]
[1758083804164,0.87080392,116410.0,116400.0,0.08317665]
[1758083805412,0.87080392,116410.0,116400.0,0.10898658]
[1758083806915,0.53536799,116410.0,116400.0,0.11096658]
[1758083807120,0.84476392,116410.0,116400.0,0.13514658]
[1758083808044,0.84476392,116410.0,116400.0,0.11096658]
[1758083808434,0.86760392,116410.0,116400.0,0.11096658]
[1758083808635,0.55820799,116410.0,116400.0,0.11096658]
[1758083810173,0.53536799,116410.0,116400.0,0.13514658]
[1758083811224,0.53536799,116410.0,116400.0,0.11096658]
[1758083812878,0.58835989,116410.0,116400.0,0.11096658]
[1758083815206,0.58835989,116410.0,116400.0,0.20353311]
[1758083815413,0.59130989,116410.0,116400.0,0.20353311]
[1758083816273,0.61711982,116410.0,116400.0,0.20353311]
[1758083818509,0.61711982,116410.0,116400.0,0.17181979]
[1758083819845,0.61711982,116410.0,116390.0,0.23039036]
[1758083820941,0.92651575,116410.0,116390.0,0.23039036]
[1758083821492,0.92051575,116410.0,116390.0,0.23039036]
[1758083821924,0.92651575,116410.0,116390.0,0.23039036]
[1758083822151,0.65759575,116410.0,116400.0,0.1718213]
[1758083822367,0.92643575,116410.0,116400.0,0.1718213]
[1758083822818,0.92643575,116410.0,116400.0,0.0718213]
[1758083823010,0.92643575,116410.0,116400.0,0.10204247]
[1758083823592,0.92043575,116410.0,116400.0,0.03022117]
[1758083824023,0.92643575,116410.0,116400.0,0.03022117]
[1758083824240,0.92643575,116410.0,116390.0,0.23039036]
[1758083825035,0.92643575,116410.0,116400.0,0.1718213]
[1758083825246,0.92043575,116410.0,116390.0,0.23039036]
[1758083826724,0.92643575,116410.0,116390.0,0.23039036]
[1758083827565,0.92643575,116410.0,116400.0,0.1718213]
[1758083829310,0.92643575,116410.0,116390.0,0.23039036]
[1758083829518,0.92643575,116410.0,116390.0,0.31689181]
[1758083829779,0.92043575,116410.0,116390.0,0.31689181]
[1758083830005,0.95911815,116410.0,116400.0,0.1718213]
[1758083830219,0.96511815,116410.0,116400.0,0.1718213]
[1758083830560,0.95911815,116410.0,116400.0,0.1718213]
[1758083830967,0.96511815,116410.0,116400.0,0.1718213]
[1758083831196,0.95911815,116410.0,116400.0,0.1718213]
[1758083832226,0.96511815,116410.0,116400.0,0.1718213]
[1758083836800,0.61703982,116410.0,116400.0,0.1718213]
[1758083837018,0.96503815,116410.0,116400.0,0.1718213]
[1758083837600,0.69627815,116410.0,116400.0,0.1718213]
[1758083837827,0.96503815,116410.0,116400.0,0.1718213]
[1758083838235,0.61695982,116410.0,116400.0,0.1718213]
[1758083838439,0.69627815,116410.0,116400.0,0.1718213]
[1758083838612,0.96503815,116410.0,116400.0,0.1718213]
[1758083841465,1.01503815,116410.0,116400.0,0.1718213]
[1758083841643,0.66695982,116410.0,116400.0,0.1718213]
[1758083841884,1.01503815,116410.0,116400.0,0.1718213]
[1758083845991,0.96503815,116410.0,116400.0,0.1718213]
[1758083848552,0.96499815,116410.0,116400.0,0.1718213]
[1758083852708,0.61691982,116410.0,116400.0,0.1718213]
[1758083852937,0.96499815,116410.0,116400.0,0.1718213]
[1758083855303,0.61691982,116410.0,116400.0,0.1718213]
[1758083855500,0.96499815,116410.0,116400.0,0.1718213]
[1758083859035,0.94215815,116410.0,116400.0,0.1718213]
[1758083859255,0.96622815,116410.0,116400.0,0.1718213]
[1758083860270,0.69750815,116410.0,116400.0,0.1718213]
[1758083860471,0.96614815,116410.0,116400.0,0.1718213]
[1758083865136,0.61806982,116410.0,116400.0,0.1718213]
[1758083865332,0.96614815,116410.0,116400.0,0.1718213]
[1758083868044,0.69750815,116410.0,116400.0,0.1718213]
[1758083868279,0.96610815,116410.0,116400.0,0.1718213]
[1758083869654,0.69750815,116410.0,116400.0,0.1718213]
[1758083869963,0.96610815,116410.0,116400.0,0.1718213]
[1758083870386,0.94203815,116410.0,116400.0,0.1718213]
[1758083870526,0.96610815,116410.0,116400.0,0.1718213]
[1758083871738,0.61802982,116410.0,116400.0,0.1718213]
[1758083871961,0.96610815,116410.0,116400.0,0.1718213]
[1758083880349,0.96610815,116410.0,116390.0,0.23096036]
[1758083880562,0.96610815,116410.0,116390.0,0.30778717]
[1758083880909,0.96610815,116410.0,116400.0,0.1718213]
[1758083882190,0.96610815,116410.0,116390.0,0.23096036]
[1758083882438,0.08650145,116400.0,116390.0,0.22239599]
[1758083882681,0.20198796,116390.0,116380.0,0.00878611]
[1758083882897,0.93375774,116390.0,116380.0,0.0002]
[1758083883111,0.58567941,116390.0,116380.0,0.0002]
[1758083883333,0.93375774,116390.0,116380.0,0.0002]
[1758083883724,0.95957306,116390.0,116380.0,0.0002]
[1758083883927,0.96257306,116390.0,116380.0,0.0012]
[1758083884087,1.04907451,116390.0,116380.0,0.0012]
[1758083884288,1.05007451,116390.0,116380.0,0.0032]
[1758083884705,0.96357306,116390.0,116380.0,0.0032]
[1758083888343,0.34693473,116390.0,116380.0,0.0032]
[1758083888633,0.69501306,116390.0,116380.0,0.0032]
[1758083889039,0.96353306,116390.0,116380.0,0.0032]
[1758083889681,0.69501306,116390.0,116380.0,0.0032]
[1758083889909,0.96353306,116390.0,116380.0,0.0032]
[1758083890280,1.05003451,116390.0,116380.0,0.0032]
[1758083891966,1.01148282,116390.0,116380.0,0.0032]
[1758083892424,0.74296282,116390.0,116380.0,0.17505083]
[1758083892645,0.92498137,116390.0,116380.0,0.17505083]
[1758083893051,0.34693473,116390.0,116380.0,0.17505083]
[1758083893259,0.92498137,116390.0,116380.0,0.17505083]
[1758083894084,0.61545473,116390.0,116380.0,0.17505083]
[1758083894314,0.92498137,116390.0,116380.0,0.17505083]
[1758083896122,0.65646137,116390.0,116380.0,0.17505083]
[1758083896368,0.75314531,116390.0,116380.0,0.17505083]
[1758083897317,0.83964676,116390.0,116380.0,0.17505083]
[1758083898093,0.75314531,116390.0,116380.0,0.17505083]
[1758083898317,0.17509867,116390.0,116380.0,0.17505083]
[1758083898549,0.44361867,116390.0,116380.0,0.17505083]
[1758083898951,0.14856867,116390.0,116380.0,0.19970083]
[1758083899154,0.43856817,116390.0,116380.0,0.17505083]
[1758083899309,0.75314531,116390.0,116380.0,0.17505083]
[1758083900387,0.44361867,116390.0,116380.0,0.17505083]
[1758083900597,0.75314531,116390.0,116380.0,0.17505083]
[1758083900981,0.92498137,116390.0,116380.0,0.17505083]
[1758083901232,0.75314531,116390.0,116380.0,0.17505083]
[1758083902240,0.72661531,116390.0,116380.0,0.17505083]
[1758083902748,0.75314531,116390.0,116380.0,0.17505083]
[1758083903826,0.92498137,116390.0,116380.0,0.17505083]
[1758083908921,1.01148282,116390.0,116380.0,0.17505083]
[1758083909525,0.92498137,116390.0,116380.0,0.17505083]
[1758083911095,0.61545473,116390.0,116380.0,0.17505083]
[1758083911302,0.75314531,116390.0,116380.0,0.17505083]
[1758083911672,0.92498137,116390.0,116380.0,0.17505083]
[1758083914384,0.58692473,116390.0,116380.0,0.17505083]
[1758083914591,0.89645137,116390.0,116380.0,0.19934083]
[1758083915064,0.90183137,116390.0,116380.0,0.17505083]
[1758083915399,0.61624473,116390.0,116380.0,0.17505083]
[1758083915616,0.92577137,116390.0,116380.0,0.17505083]
[1758083917980,1.01227282,116390.0,116380.0,0.17505083]
[1758083919721,0.70274618,116390.0,116380.0,0.17505083]
[1758083920020,1.01227282,116390.0,116380.0,0.17505083]
[1758083920242,0.92577137,116390.0,116380.0,0.17505083]
[1758083922067,0.92577137,116390.0,116380.0,0.0032]
[1758083924928,0.89995605,116390.0,116380.0,0.0032]
[1758083925143,0.89995605,116390.0,116380.0,0.17505083]
[1758083925343,0.9864575,116390.0,116380.0,0.17505083]
[1758083926514,0.67693086,116390.0,116380.0,0.17505083]
[1758083926676,0.9864575,116390.0,116380.0,0.17505083]
[1758083932674,0.7179375,116390.0,116380.0,0.17505083]
[1758083932878,0.9863375,116390.0,116380.0,0.17505083]
[1758083934775,0.32190941,116390.0,116380.0,0.17505083]
[1758083934994,0.89983605,116390.0,116380.0,0.17505083]
[1758083935912,0.63143605,116390.0,116380.0,0.17505083]
[1758083936082,0.89983605,116390.0,116380.0,0.17505083]
[1758083936489,0.86968415,116390.0,116380.0,0.17505083]
[1758083936689,0.89983605,116390.0,116380.0,0.17505083]
[1758083937341,0.15007335,116390.0,116380.0,0.17505083]
[1758083937589,0.74947949,116390.0,116380.0,0.17505083]
[1758083937783,0.89983605,116390.0,116380.0,0.17505083]
[1758083942205,0.72799999,116390.0,116380.0,0.17505083]
[1758083942410,0.89983605,116390.0,116380.0,0.17505083]
[1758083948991,0.59030941,116390.0,116380.0,0.17505083]
[1758083953914,0.93849664,116390.0,116380.0,0.17505083]
[1758083954106,0.59030941,116390.0,116380.0,0.17505083]
[1758083954252,0.93849664,116390.0,116380.0,0.17505083]
[1758083955955,1.02499809,116390.0,116380.0,0.17505083]
[1758083957483,0.67681086,116390.0,116380.0,0.17505083]
[1758083957743,1.02499809,116390.0,116380.0,0.17505083]
[1758083958883,0.93849664,116390.0,116380.0,0.17505083]
[1758083963060,0.93849664,116390.0,116380.0,0.0032]
[1758083968131,0.67009664,116390.0,116380.0,0.0032]
[1758083968314,0.93841664,116390.0,116380.0,0.0032]
[1758083977614,0.59022941,116390.0,116380.0,0.0032]
[1758083977825,0.93841664,116390.0,116380.0,0.0032]
[1758083978049,1.02491809,116390.0,116380.0,0.0032]
[1758083978474,0.93841664,116390.0,116380.0,0.0032]
[1758083985396,0.96423196,116390.0,116380.0,0.0032]
[1758083986151,0.96415196,116390.0,116380.0,0.0032]
[1758083992514,0.69591196,116390.0,116380.0,0.0032]
[1758083992725,0.96415196,116390.0,116380.0,0.0032]
[1758083993448,1.05065341,116390.0,116380.0,0.0032]
[1758083995207,0.78241341,116390.0,116380.0,0.0032]
[1758083995413,1.05065341,116390.0,116380.0,0.0032]
[1758083999090,0.70242618,116390.0,116380.0,0.0032]
[1758083999271,0.96411196,116390.0,116380.0,0.0032]
[1758084002484,0.98017214,116390.0,116380.0,0.0032]
[1758084002708,0.96411196,116390.0,116380.0,0.0032]
[1758084004769,0.98017225,116390.0,116380.0,0.0032]
[1758084004949,1.0666737,116390.0,116380.0,0.0032]
[1758084005146,1.05061341,116390.0,116380.0,0.0032]
[1758084005352,1.06667358,116390.0,116380.0,0.0032]
[1758084006178,1.05061341,116390.0,116380.0,0.0032]
[1758084007369,1.06667311,116390.0,116380.0,0.0032]
[1758084009527,1.06666701,116390.0,116380.0,0.0032]
[1758084013755,1.02809924,116390.0,116380.0,0.0032]
[1758084015342,0.54200273,116380.0,116370.0,5e-05]
[1758084015563,1.04067869,116380.0,116370.0,5e-05]
[1758084015734,1.33704869,116380.0,116370.0,5e-05]
[1758084016141,1.36287112,116380.0,116370.0,5e-05]
[1758084016555,1.36291799,116380.0,116370.0,5e-05]
[1758084016710,1.36691799,116380.0,116370.0,5e-05]
[1758084017345,1.36791799,116380.0,116370.0,0.00205]
[1758084020785,1.18227799,116380.0,116370.0,0.00205]
[1758084020987,1.45047799,116380.0,116370.0,0.00205]
[1758084032481,1.14085853,116380.0,116370.0,0.00205]
[1758084032692,1.45047799,116380.0,116370.0,0.00205]
[1758084034717,1.15939799,116380.0,116370.0,0.00205]
[1758084034920,1.45009799,116380.0,116370.0,0.00205]
[1758084037457,1.18193799,116380.0,116370.0,0.00205]
[1758084037662,1.45009799,116380.0,116370.0,0.00205]
[1758084040124,1.14047853,116380.0,116370.0,0.00205]
[1758084040343,1.45009799,116380.0,116370.0,0.00205]
[1758084047964,1.45010305,116380.0,116370.0,0.00205]
[1758084048760,1.18194305,116380.0,116370.0,0.00205]
[1758084048965,1.45010305,116380.0,116370.0,0.00205]
[1758084053368,1.45006305,116380.0,116370.0,0.00205]
[1758084056025,1.18194305,116380.0,116370.0,0.00205]
[1758084056223,1.45006305,116380.0,116370.0,0.00205]
[1758084064744,1.45608895,116380.0,116370.0,0.00205]
[1758084067433,1.44003029,116380.0,116370.0,0.00205]
[1758084067668,1.43400439,116380.0,116370.0,0.00205]
[1758084067914,1.45609871,116380.0,116370.0,0.00205]
[1758084068130,1.43400439,116380.0,116370.0,0.00205]
[1758084068549,1.45609867,116380.0,116370.0,0.00205]
[1758084069058,1.43400439,116380.0,116370.0,0.00205]
[1758084069274,1.4400301,116380.0,116370.0,0.00205]
[1758084070251,1.43400439,116380.0,116370.0,0.00205]
[1758084072038,1.48400439,116380.0,116370.0,0.00205]
[1758084072667,1.50609836,116380.0,116370.0,0.00205]
[1758084075059,1.50209836,116380.0,116370.0,0.00205]
[1758084075260,1.50809836,116380.0,116370.0,0.00205]
[1758084075699,1.50709836,116380.0,116370.0,5e-05]
[1758084075903,1.84430262,116380.0,116370.0,5e-05]
[1758084076505,1.84530262,116380.0,116370.0,5e-05]
[1758084078832,1.84526262,116380.0,116370.0,5e-05]
[1758084080490,1.1484389,116380.0,116370.0,5e-05]
[1758084080730,1.84526262,116380.0,116370.0,5e-05]
[1758084082336,1.89526262,116380.0,116370.0,5e-05]
[1758084087198,1.62718262,116380.0,116370.0,5e-05]
[1758084087400,1.89526262,116380.0,116370.0,5e-05]
[1758084095888,1.89522262,116380.0,116370.0,5e-05]
[1758084105748,1.1983989,116380.0,116370.0,5e-05]
[1758084105992,1.89522262,116380.0,116370.0,5e-05]
[1758084107933,1.88919699,116380.0,116370.0,5e-05]
[1758084108114,1.89522606,116380.0,116370.0,5e-05]
[1758084110964,1.84522606,116380.0,116370.0,5e-05]
[1758084113528,1.57718606,116380.0,116370.0,5e-05]
[1758084113730,1.84518606,116380.0,116370.0,5e-05]
[1758084114487,1.11973275,116380.0,116370.0,5e-05]
[1758084114688,1.38450275,116380.0,116370.0,0.02428]
[1758084114893,1.38743275,116380.0,116370.0,0.02428]
[1758084115091,1.38743275,116380.0,116370.0,5e-05]
[1758084115267,1.41161275,116380.0,116370.0,5e-05]
[1758084115480,1.4981142,116380.0,116370.0,5e-05]
[1758084116890,1.84652606,116380.0,116370.0,5e-05]
[1758084117534,1.4981142,116380.0,116370.0,5e-05]
[1758084119021,1.49812151,116380.0,116370.0,5e-05]
[1758084121226,1.49812083,116380.0,116370.0,5e-05]
[1758084126389,1.49811879,116380.0,116370.0,5e-05]
[1758084128300,1.14970693,116380.0,116370.0,5e-05]
[1758084128509,1.49811879,116380.0,116370.0,5e-05]
[1758084129442,1.14970693,116380.0,116370.0,5e-05]
[1758084129648,1.49811879,116380.0,116370.0,5e-05]
[1758084135904,1.45933206,116380.0,116370.0,5e-05]
[1758084138153,1.4593312,116380.0,116370.0,5e-05]
[1758084145020,1.4593334,116380.0,116370.0,5e-05]
[1758084146568,1.5093334,116380.0,116370.0,5e-05]
[1758084155676,1.5092134,116380.0,116370.0,5e-05]
[1758084160274,1.50921049,116380.0,116370.0,5e-05]
[1758084161206,1.50920647,116380.0,116370.0,5e-05]
[1758084162879,1.24132647,116380.0,116370.0,5e-05]
[1758084163080,1.50920647,116380.0,116370.0,5e-05]
[1758084164876,1.83948647,116380.0,116370.0,5e-05]
[1758084165300,1.83852142,116380.0,116370.0,5e-05]
[1758084167118,1.57064142,116380.0,116370.0,5e-05]
[1758084167382,1.83852142,116380.0,116370.0,5e-05]
[1758084167992,1.57064142,116380.0,116370.0,5e-05]
[1758084168233,1.83852142,116380.0,116370.0,5e-05]
[1758084168635,1.57064142,116380.0,116370.0,5e-05]
[1758084168833,1.26101629,116380.0,116370.0,5e-05]
[1758084169063,1.83852142,116380.0,116370.0,5e-05]
[1758084169599,1.50824142,116380.0,116370.0,5e-05]
[1758084171129,1.24036142,116380.0,116370.0,5e-05]
[1758084171367,1.50824142,116380.0,116370.0,5e-05]
[1758084171757,1.21618142,116380.0,116370.0,5e-05]
[1758084171971,1.50835142,116380.0,116370.0,5e-05]
[1758084172227,1.24047142,116380.0,116370.0,5e-05]
[1758084172462,1.50835142,116380.0,116370.0,5e-05]
[1758084174141,1.45835142,116380.0,116370.0,5e-05]
[1758084176183,1.16618142,116380.0,116370.0,5e-05]
[1758084176327,1.43406142,116380.0,116370.0,5e-05]
[1758084176741,1.45770142,116380.0,116370.0,5e-05]
[1758084177150,1.45768117,116380.0,116370.0,5e-05]
[1758084178183,1.18980117,116380.0,116370.0,5e-05]
[1758084178384,1.45768117,116380.0,116370.0,5e-05]
[1758084182530,1.14805604,116380.0,116370.0,5e-05]
[1758084182928,1.45768117,116380.0,116370.0,5e-05]
[1758084191591,1.14805604,116380.0,116370.0,5e-05]
[1758084191802,1.45768117,116380.0,116370.0,5e-05]
[1758084192882,1.45166951,116380.0,116370.0,5e-05]
[1758084193314,1.45769369,116380.0,116370.0,5e-05]
[1758084193523,1.45769404,116380.0,116370.0,5e-05]
[1758084193729,1.45166974,116380.0,116370.0,5e-05]
[1758084194137,1.43560501,116380.0,116370.0,5e-05]
[1758084194347,1.45769403,116380.0,116370.0,5e-05]
[1758084197395,1.1480689,116380.0,116370.0,5e-05]
[1758084197590,1.45769403,116380.0,116370.0,5e-05]
[1758084197799,1.49639322,116380.0,116370.0,5e-05]
[1758084204244,1.49639661,116380.0,116370.0,5e-05]
[1758084215873,0.85655229,116380.0,116370.0,5e-05]
[1758084216072,0.85655229,116380.0,116370.0,0.02463]
[1758084216073,1.03296084,116380.0,116370.0,0.02463]
[1758084216319,1.03296615,116380.0,116370.0,0.02463]
[1758084216499,1.03296615,116380.0,116370.0,0.37295432]
[1758084216769,0.42516615,116380.0,116370.0,0.37295432]
[1758084217010,0.67086843,116380.0,116370.0,0.37295432]
[1758084219412,0.67086843,116380.0,116370.0,0.54481992]
[1758084219659,0.67086843,116380.0,116370.0,0.37295432]
[1758084223857,0.67086843,116380.0,116370.0,0.02463]
[1758084224092,0.67086843,116380.0,116370.0,0.37295432]
[1758084226608,0.67086843,116380.0,116370.0,0.02463]
[1758084226772,0.67086843,116380.0,116370.0,0.37295432]
[1758084230207,0.67082843,116380.0,116370.0,0.37295432]
[1758084240198,0.67082843,116380.0,116370.0,0.02463]
[1758084240418,0.67082843,116380.0,116370.0,0.37295432]
[1758084240590,0.67082843,116380.0,116370.0,0.02463]
[1758084240794,0.67082843,116380.0,116370.0,0.37295432]
[1758084242708,0.67082843,116380.0,116370.0,0.02463]
[1758084243083,0.67082843,116380.0,116370.0,0.37295432]
[1758084244305,0.70029843,116380.0,116370.0,0.34837432]
[1758084244762,0.70029843,116380.0,116370.0,5e-05]
[1758084245661,1.04862275,116380.0,116370.0,5e-05]
[1758084245879,1.06470405,116380.0,116370.0,5e-05]
[1758084253147,1.04035405,116380.0,116370.0,5e-05]
[1758084253514,1.06466405,116380.0,116370.0,5e-05]
[1758084253823,1.06466392,116380.0,116370.0,5e-05]
[1758084254444,1.06466361,116380.0,116370.0,5e-05]
[1758084256091,1.06466335,116380.0,116370.0,5e-05]
[1758084256310,1.11466335,116380.0,116370.0,5e-05]
[1758084257725,0.76633903,116380.0,116370.0,5e-05]
[1758084257940,0.7663377,116380.0,116370.0,5e-05]
[1758084259125,0.4986177,116380.0,116370.0,5e-05]
[1758084259388,0.7663377,116380.0,116370.0,5e-05]
[1758084264923,0.4986177,116380.0,116370.0,5e-05]
[1758084265132,0.7662977,116380.0,116370.0,5e-05]
[1758084266016,0.7162977,116380.0,116370.0,5e-05]
[1758084267733,0.7662977,116380.0,116370.0,5e-05]
[1758084276627,0.6837377,116380.0,116370.0,5e-05]
[1758084281772,0.77023915,116380.0,116370.0,5e-05]
[1758084282614,0.6837377,116380.0,116370.0,5e-05]
[1758084286216,0.7662977,116380.0,116370.0,5e-05]
[1758084291092,0.4160577,116380.0,116370.0,5e-05]
[1758084291291,0.6836977,116380.0,116370.0,5e-05]
[1758084291907,0.4160577,116380.0,116370.0,5e-05]
[1758084292142,0.6836977,116380.0,116370.0,5e-05]
[1758084297101,0.4160577,116380.0,116370.0,5e-05]
[1758084297289,0.6836977,116380.0,116370.0,5e-05]
[1758084300374,1.07976678,116380.0,116370.0,5e-05]
[1758084300582,1.08580083,116380.0,116370.0,5e-05]
[1758084303386,0.7768732,116380.0,116370.0,5e-05]
[1758084303808,1.06149083,116380.0,116370.0,5e-05]
[1758084304016,1.08644083,116380.0,116370.0,5e-05]
[1758084304445,0.7768732,116380.0,116370.0,5e-05]
[1758084304845,1.08644083,116380.0,116370.0,5e-05]
[1758084308719,0.7768732,116380.0,116370.0,5e-05]
[1758084309286,0.77683036,116380.0,116370.0,5e-05]
[1758084313359,1.08639799,116380.0,116370.0,5e-05]
[1758084313612,0.77683036,116380.0,116370.0,5e-05]
[1758084314775,1.11683036,116380.0,116370.0,5e-05]
[1758084316524,0.84923036,116380.0,116370.0,5e-05]
[1758084316724,1.11687036,116380.0,116370.0,5e-05]
[1758084318572,1.42643799,116380.0,116370.0,5e-05]
[1758084318767,1.42643788,116380.0,116370.0,5e-05]
[1758084319720,1.42651788,116380.0,116370.0,5e-05]
[1758084320047,1.4652713,116380.0,116370.0,5e-05]
[1758084320590,1.11695025,116380.0,116370.0,5e-05]
[1758084320793,1.4652713,116380.0,116370.0,5e-05]
[1758084320992,1.1975513,116380.0,116370.0,5e-05]
[1758084321245,1.4652713,116380.0,116370.0,5e-05]
[1758084321462,1.5478313,116380.0,116370.0,5e-05]
[1758084323291,1.46132985,116380.0,116370.0,5e-05]
[1758084327263,1.1130088,116380.0,116370.0,5e-05]
[1758084327470,1.46133281,116380.0,116370.0,5e-05]
[1758084328335,1.46133423,116380.0,116370.0,5e-05]
[1758084330809,1.11301318,116380.0,116370.0,5e-05]
[1758084331031,1.19951463,116380.0,116370.0,5e-05]
[1758084331237,1.54783568,116380.0,116370.0,5e-05]
[1758084332690,1.19951463,116380.0,116370.0,5e-05]
[1758084332953,1.28011568,116380.0,116370.0,5e-05]
[1758084333202,1.54867568,116380.0,116370.0,5e-05]
[1758084333408,1.20031463,116380.0,116370.0,5e-05]
[1758084333625,1.54863568,116380.0,116370.0,5e-05]
[1758084334595,1.28011568,116380.0,116370.0,5e-05]
[1758084334793,1.54867568,116380.0,116370.0,5e-05]
[1758084335577,1.20035463,116380.0,116370.0,5e-05]
[1758084335790,1.54867568,116380.0,116370.0,5e-05]
[1758084336679,1.54879568,116380.0,116370.0,5e-05]